[Event "US Masters 2022"]
[Site "Charlotte"]
[Date "2022.11.26"]
[Round "5.17"]
[White "Stremavicius, Titas"]
[Black "Mandizha, Farai"]
[Result "0-1"]
[ECO "A27"]
[WhiteElo "2527"]
[BlackElo "2359"]
[Annotator "TA"]
[PlyCount "216"]
[EventDate "2022.11.23"]
[EventType "swiss"]
[EventCountry "USA"]
[SourceTitle "playchess.com"]
[Source "ChessBase"]
[SourceQuality "1"]
[TimeControl "5400+30"]

{[%evp 26,216,12,16,18,-25,16,14,16,15,28,20,13,0,0,-39,-48,-43,-39,-38,-33,-55,-50,-50,-25,-116,-116,-116,-116,-131,-123,-135,-136,-154,-153,-137,-108,-108,-109,-185,-178,-163,-159,-223,-204,-370,-370,-370,-370,-370,-370,-370,-366,-370,-359,-377,-350,-650,-630,-520,0,-366,-276,-314,-263,-321,-324,-323,-305,-363,-363,-370,-356,-355,0,-356,-200,-343,-331,-307,0,-331,-228,-228,-200,-217,-210,-217,-217,-217,-217,-210,-157,-157,-157,-141,-141,-153,-157,-258,-157,-150,-149,-251,-157,-148,-157,-199,-156,-158,-162,-160,-151,-156,-157,-155,-147,-155,-122,-125,0,-155,-147,-138,0,-148,-149,-155,-130,-139,0,-130,-139,-136,-128,-125,0,-106,0,-138,0,-83,-62,-183,-183,-287,-277,-337,-309,-331,-334,-327,-327,-327,-327,-287,-89,-665,-603,-960,-869,-2224,-2236,-2018,-2008,-1793,-1781,-1583,-1484,-1081,0,-466,0,-1227,-1206,-1083,-972,-1868,-2291,-2283,-1278,-1252,-1192,-980,0,-902,0,-2763,-1571,-29967,-5397,-1356,-1189]} 1. c4 {[%emt 0:00:15]} e5 {[%emt 0:05:02]} 2. Nc3 {[%emt 0:00:11]} Nc6 {[%emt 0:01:37]} 3. Nf3 {[%emt 0:00:22]} f5 {[%emt 0:00:46]} 4. g3 {[%emt 0:00:25]} Nf6 {[%emt 0:02:31]} 5. d4 {[%emt 0:00:19]} e4 {[%emt 0:00:38]} 6. Nh4 {[%emt 0:00:19]} d6 {[%emt 0:07:39]} 7. Bg5 {[%emt 0:03:05]} Be7 {[%emt 0:00:58]} 8. e3 {[%emt 0:00:12]} O-O {[%emt 0:00:07]} 9. Ng2 {[%emt 0:00:42]} h6 {[%emt 0:00:58]} 10. Bxf6 {[%emt 0:00:35]} Bxf6 {[%emt 0:00:08]} 11. h4 {[%emt 0:00:14]} Ne7 {[%emt 0:01:22]} 12. Nf4 {[%emt 1:29:51]} c5 {[%emt 0:03:00]} 13. Nh5 {[%emt 0:00:00]} Qb6 {[%emt 0:05:48]} 14. Nxf6+ {[%emt 0:00:00]} Rxf6 {[%emt 0:00:15]} 15. Qd2 {[%emt 0:00:00]} Be6 {[%emt 0:01:37]} 16. d5 {[%emt 0:00:00]} Bd7 {[%emt 0:02:18]} 17. h5 {[%emt 0:00:00]} a6 {[%emt 0:02:04]} 18. Be2 {[%emt 0:00:00]} Kh8 {[%emt 0:05:22]} 19. b3 {[%emt 0:00:00]} Ng8 {[%emt 0:00:40]} 20. g4 {[%emt 0:00:00]} Re8 {[%emt 0:00:22]} 21. gxf5 {[%emt 0:00:00]} Bxf5 {[%emt 0:01:34]} 22. O-O-O {[%emt 0:00:00]} Rf7 {[%emt 0:02:10]} 23. Rdg1 {[%emt 0:00:00]} Nf6 {[%emt 0:00:11]} 24. Rh4 {[%emt 0:00:00]} Re5 {[%emt 0:00:21]} 25. Bd1 {[%emt 0:00:00]} (25. Rf4 $11) 25... Qd8 $1 $17 {[%emt 0:00:10]} 26. Rh2 {[%emt 0:00:00]} b5 {[%emt 0:03:25]} 27. Kb2 {[%emt 0:00:00]} Rb7 {[%emt 0:03:13]} 28. Be2 {[%emt 0:00:00]} Qe8 {[%emt 0:00:52]} 29. Rh4 {[%emt 0:00:00]} b4 {[%emt 0:04:19]} 30. Nb1 {[%emt 0:00:00]} a5 {[%emt 0:00:09]} 31. a4 {[%emt 0:00:00]} Bd7 {[%emt 0:10:48]} 32. Rgh1 {[%emt 0:00:00]} (32. Ka2 $17 {might work better.}) 32... Rf5 $19 {[%emt 0:06:16]} 33. Bd1 {[%emt 0:00:00]} Qe5+ $1 {[%emt 0:00:41]} 34. Ka2 {[%emt 0:00:00]} Be8 {[%emt 0:01:08]} 35. R1h2 $2 {[%emt 0:00:00]} (35. Qe2) 35... Bxh5 $19 {[%emt 0:01:48]} (35... Nxh5 36. Qb2 Nf6 37. Nd2 $17) 36. Bxh5 {[%emt 0:00:00]} Rxh5 {[%emt 0:00:06]} ({Stronger than} 36... Nxh5 37. Qe2 Nf6 38. Nd2 $17) 37. Rxh5 {[%emt 0:00:00]} Nxh5 {[%emt 0:00:16]} 38. Rg2 {[%emt 0:00:00]} Rf7 {[%emt 0:07:42]} 39. Qe1 {[%emt 0:00:00]} Nf6 {[%emt 0:03:30]} 40. Qh1 {[%emt 0:00:00]} Qf5 {[%emt 0:06:33]} 41. Nd2 $2 {[%emt 0:00:00]} (41. Ka1) 41... Ng4 $19 {[%emt 0:02:00]} 42. Qh4 {[%emt 0:00:00]} Nf6 $2 {[%emt 0:04:49]} (42... Nxf2 $19 43. Qd8+ Kh7) 43. Qg3 $2 {[%emt 0:00:00][%mdl 8192]} (43. Qh1 $1 $11 {and White is okay.}) 43... Rd7 {[%emt 0:00:29]} 44. Kb1 {[%emt 0:00:00]} Kh7 {[%emt 0:00:09]} 45. Kc2 {[%emt 0:00:00]} g5 {[%emt 0:00:35]} 46. Kd1 {[%emt 0:00:00]} Kg6 {[%emt 0:00:44]} 47. Ke2 {[%emt 0:00:00]} h5 {[%emt 0:02:07]} 48. Rh2 {[%emt 0:00:24]} Ng4 {[%emt 0:01:43]} 49. Rg2 {[%emt 0:00:39]} Nf6 {[%emt 0:01:28]} 50. Rh2 $1 {[%emt 0:00:11]} g4 {[%emt 0:01:10]} (50... Qg4+ $142 51. Qxg4 Nxg4) 51. Ke1 {[%emt 0:02:23]} (51. Rh1 {was the only chance.}) 51... Ne8 {[%emt 0:01:27]} 52. Qh4 {[%emt 0:01:09]} Nf6 {[%emt 0:00:46]} 53. Qg3 $1 {[%emt 0:01:33]} Rd8 {[%emt 0:00:26]} 54. Rh1 {[%emt 0:00:09]} Qg5 {[%emt 0:00:31]} 55. Rh2 {[%emt 0:00:20]} Kf7 {[%emt 0:00:15]} 56. Ke2 {[%emt 0:02:45]} Qf5 {[%emt 0:00:27]} 57. Rh4 {[%emt 0:00:32]} Ke7 {[%emt 0:00:17]} 58. Qf4 {[%emt 0:00:16]} Qg6 {[%emt 0:00:58]} 59. Nf1 {[%emt 0:00:43]} Kd7 {[%emt 0:00:38]} 60. Ng3 {[%emt 0:00:22]} Re8 {[%emt 0:00:17]} 61. Kf1 {[%emt 0:02:48]} Re5 {[%emt 0:00:04]} 62. Kg2 {[%emt 0:00:11]} (62. Rh1 $17 {only move.}) 62... Kc7 {[%emt 0:00:36]} 63. Rh1 {[%emt 0:00:50]} Kd8 {[%emt 0:00:35]} 64. Rh4 {[%emt 0:01:55]} (64. Kf1 $17) 64... Ke7 {[%emt 0:00:22]} 65. Rh1 {[%emt 0:00:08]} Kf7 {[%emt 0:00:28]} 66. Ne2 {[%emt 0:04:01]} Qg7 {[%emt 0:01:06]} 67. Qg3 {[%emt 0:01:01]} Qg5 {[%emt 0:00:10]} 68. Nf4 {[%emt 0:00:11]} Qf5 {[%emt 0:00:11]} 69. Kg1 {[%emt 0:01:37]} Ke7 {[%emt 0:00:19]} 70. Qh4 {[%emt 0:00:41]} Kd7 {[%emt 0:00:13]} 71. Rh2 {[%emt 0:00:06]} Kc8 {[%emt 0:00:24]} 72. Rh1 {[%emt 0:00:33]} Kd7 {[%emt 0:02:22]} 73. Rh2 $1 {[%emt 0:00:03]} Ke8 {[%emt 0:00:00]} 74. Rh1 {[%emt 0:00:25]} Kf7 {[%emt 0:00:00]} ({Better is} 74... Ke7 $1 $17 75. Kg2 Qh7) 75. Rh2 {[%emt 0:00:20]} (75. Qg3 $1 $11 {was the only way to keep the balance.}) 75... Kg7 {[%emt 0:00:29]} 76. Kg2 {[%emt 0:00:39]} Kh6 {[%emt 0:00:28]} 77. Qg3 {[%emt 0:00:30]} Kg7 {[%emt 0:00:48]} 78. Qh4 $1 {[%emt 0:00:33]} Kh7 {[%emt 0:00:15]} 79. Qg3 {[%emt 0:00:13]} Kh6 {[%emt 0:00:07]} 80. Rh1 {[%emt 0:00:21]} Re8 {[%emt 0:01:03]} ({Black should try} 80... Qd7 $17) 81. Rh2 {[%emt 0:00:33]} (81. Ne6 $1 $11) 81... Re5 {[%emt 0:00:35]} 82. Rh1 {[%emt 0:00:05]} Re8 {[%emt 0:00:10]} (82... Qd7 $142 83. Rh4 Qe7) 83. Rh2 $17 {[%emt 0:00:04]} Rg8 {[%emt 0:00:34]} 84. Rh1 {[%emt 0:00:16]} (84. Ne6 $1 $15) 84... Rg5 $1 $19 {[%emt 0:00:27]} 85. Kg1 {[%emt 0:00:41]} (85. Kf1 $142) 85... Qe5 $19 {[%emt 0:00:18]} 86. Ne6 {[%emt 0:03:45]} Rf5 {[%emt 0:00:11]} 87. Qxe5 {[%emt 0:00:33]} Rxe5 {[%emt 0:00:02]} 88. Nd8 {[%emt 0:00:38] [#]} Re7 $1 {[%emt 0:01:11]} 89. Nc6 {[%emt 0:00:57]} Rf7 {[%emt 0:00:51]} 90. Kg2 {[%emt 0:02:22]} g3 $2 {[%emt 0:00:28]} (90... Nd7 $19 {is more deadly. Hoping for ...Kg6.} 91. Rh2 Kg5) 91. Kxg3 $2 {[%emt 0:00:31][%mdl 8192]} (91. fxg3 $2 Ng4 92. Re1 Rf2+ 93. Kg1 Rf3 $19) (91. Nd8 $17 Rd7 92. Ne6) 91... Ng4 $19 {[%emt 0:00:04]} 92. Nd8 {[%emt 0:00:30]} Rxf2 {[%emt 0:00:30]} 93. Nb7 {[%emt 0:00:29]} Rf3+ {[%emt 0:00:07]} 94. Kg2 {[%emt 0:00:22]} Nxe3+ {[%emt 0:00:11]} 95. Kh2 {[%emt 0:00:19]} Ng4+ {[%emt 0:01:22]} 96. Kg2 {[%emt 0:00:01]} Rf2+ {[%emt 0:00:27]} 97. Kg3 {[%emt 0:00:15]} Rf3+ {[%emt 0:00:55]} (97... Kg5 $142 98. Nxd6 h4+ 99. Kh3 Re2 100. Nxe4+ Rxe4) 98. Kg2 $1 $19 {[%emt 0:00:02]} Ne3+ {[%emt 0:00:36]} (98... Rxb3 $2 {perishes.} 99. Nxd6 Rc3 100. Nxe4 Rxc4 101. Kf3 $19) (98... Kg5 $142 99. Nxd6 Ne3+ 100. Kh2 Kf4) 99. Kh2 $19 {[%emt 0:00:06]} Nf5 {[%emt 0:00:40]} 100. Rg1 {[%emt 0:00:22]} Rxb3 {[%emt 0:00:20]} 101. Nd8 {[%emt 0:00:21]} Rg3 {[%emt 0:00:34]} 102. Re1 {[%emt 0:00:36]} Re3 {[%emt 0:00:35]} 103. Rg1 {[%emt 0:00:26]} Re2+ {[%emt 0:00:20]} 104. Kh3 {[%emt 0:00:05]} Re3+ {[%emt 0:00:04]} 105. Kh2 {[%emt 0:00:03]} Rg3 {[%emt 0:01:48]} 106. Re1 $1 {[%emt 0:00:02]} Rg4 {[%emt 0:00:00]} 107. Rf1 {[%emt 0:00:10] [#]} Kg6 {[%emt 0:00:00]} (107... e3 $142 $1 108. Rb1 (108. Re1 b3) 108... e2 109. Ne6 Nh4 110. Kh3 Nf3 111. Nf4 e1=Q 112. Rxe1 Nxe1 113. Ne6 b3 114. Nd8 b2 115. Nf7+ Kg7 116. Nd8 b1=Q 117. Ne6+ Kh6 118. Nd8 Qb3+ 119. Kh2 Qg3+ 120. Kh1 Rh4#) 108. Ne6 {[%emt 0:00:04]} e3 {[%emt 0:00:15]} 0-1

[Event "US Masters 2022"]
[Site "Charlotte"]
[Date "2022.11.26"]
[Round "5.18"]
[White "Kavutskiy, Konstantin"]
[Black "Ghaemmaghami, Ehsan"]
[Result "1-0"]
[ECO "E15"]
[WhiteElo "2383"]
[BlackElo "2511"]
[Annotator "TA"]
[PlyCount "130"]
[EventDate "2022.11.23"]
[EventType "swiss"]
[EventCountry "USA"]
[SourceTitle "playchess.com"]
[Source "ChessBase"]
[SourceQuality "1"]
[TimeControl "5400+30"]

{[%evp 12,130,33,23,31,26,38,30,39,35,67,67,64,63,101,56,54,39,54,36,42,47,56,29,19,25,24,20,45,33,60,65,53,66,72,52,55,34,593,108,127,123,171,70,76,46,41,70,45,58,55,57,48,50,72,64,64,64,173,170,191,191,183,148,150,104,379,378,748,677,784,855,847,852,856,501,856,860,856,855,847,822,932,716,667,543,709,675,716,684,679,653,602,539,784,299,1553,1443,29964,29965,29965,29966,29967,29967,29967,1932,29976,29977,29977,29978,29978,29978,29981,29982,29982,29983,29983,29984,29984,29985,29985]} 1. d4 {[%emt 0:06:59]} Nf6 {[%emt 0:05:28]} 2. c4 {[%emt 0:00:20]} e6 {[%emt 0:00:06]} 3. Nf3 {[%emt 0:00:19]} b6 {[%emt 0:05:30]} 4. g3 {[%emt 0:00:17]} Ba6 {[%emt 0:00:06]} 5. b3 {[%emt 0:00:09]} c6 {[%emt 0:01:01]} 6. Bg2 {[%emt 0:00:56]} d5 {[%emt 0:00:17]} 7. Nbd2 {[%emt 0:02:11]} Nbd7 {[%emt 0:02:22] E15: Queen's Indian: 4 g3 sidelines, 4 g3 Ba6 and 4 g3 Bb7 early deviations.} 8. O-O {[%emt 0:00:25]} Rc8 {[%emt 0:22:26]} 9. e4 {[%emt 0:08:53]} (9. Bb2 {simplifies} Bb7 10. e4 Nxe4 11. Nxe4 dxe4 12. Nd2) 9... dxe4 {[%emt 0:09:17] White has an edge.} 10. Ng5 {[%emt 0:00:19] [#]} e3 $146 {[%emt 0:07:22]} ({Predecessor:} 10... c5 11. Ndxe4 h6 12. Nxf6+ Qxf6 13. Nf3 b5 14. Bf4 cxd4 15. Nxd4 e5 16. cxb5 Bc5 {0-1 (64) Kotanjian,T (2580)-Li,C (2634) Martuni 2009}) 11. fxe3 {[%emt 0:01:46]} Be7 {[%emt 0:00:24]} 12. e4 {[%emt 0:11:36]} O-O {[%emt 0:13:19]} 13. Bb2 {[%emt 0:10:49]} Ne8 {[%emt 0:08:05]} 14. Ngf3 {[%emt 0:03:03]} c5 $1 {[%emt 0:09:17]} 15. d5 {[%emt 0:00:17]} exd5 $1 {[%emt 0:00:27]} 16. exd5 {[%emt 0:00:15]} b5 {[%emt 0:00:10]} 17. Kh1 {[%emt 0:09:48]} (17. Qc2 {with more complications.} Nd6 18. Bh3 bxc4 19. Nxc4 Bxc4 20. bxc4 Rb8 21. Bxd7 Rxb2 22. Qxb2 Bf6 23. Qa3) 17... Bf6 {[%emt 0:09:48]} 18. Bxf6 {[%emt 0:02:40]} Nexf6 {[%emt 0:00:08]} 19. Bh3 {[%emt 0:06:56] Against Ng4} Rb8 {[%emt 0:00:46]} 20. Qc2 {[%emt 0:00:16]} Bc8 {[%emt 0:03:13]} 21. Rae1 {[%emt 0:02:00]} bxc4 {[%emt 0:00:43]} 22. bxc4 {[%emt 0:00:34]} Qc7 {[%emt 0:00:32]} 23. Qc3 {[%emt 0:06:48]} Re8 {[%emt 0:00:38]} 24. Nh4 {[%emt 0:02:46] And now Nf5 would win.} g6 {[%emt 0:00:10][%mdl 8192] Against Nf5} (24... Rxe1 $14 25. Rxe1 Nf8 26. Bxc8 Qxc8) 25. Nhf3 $2 {[%emt 0:04:25]} (25. Bxd7 $18 Rxe1 26. Rxe1 Nxd7 27. Re8+ Nf8 28. Ne4 Rb1+ 29. Kg2) 25... Rxe1 {[%emt 0:00:51]} 26. Rxe1 {[%emt 0:00:27] aiming for Bxd7.} Bb7 {[%emt 0:00:24]} (26... Ba6 $16 {was called for.} 27. Qa3 Bc8) 27. Re7 {[%emt 0:11:52]} (27. Kg1 $18) 27... Qd6 $14 {[%emt 0:00:19]} 28. Rxd7 {[%emt 0:01:30] White is much more active.} Nxd7 {[%emt 0:00:06]} 29. Bxd7 {[%emt 0:00:04]} Qxd7 {[%emt 0:00:41]} 30. Ne4 $1 {[%emt 0:00:08] Nf6+ would kill now.} Qh3 {[%emt 0:00:58] ...Qf1+ is the strong threat.} 31. Nf6+ $1 {[%emt 0:00:20] Pair of Knights!} Kf8 {[%emt 0:00:10] [#]} 32. Nd7+ $1 {[%emt 0:01:33][%mdl 64]} Qxd7 {[%emt 0:00:17]} 33. Qh8+ {[%emt 0:00:05][%mdl 64] Skewer, Double Attack} Ke7 {[%emt 0:01:39]} 34. Qxb8 {[%emt 0:00:10][%mdl 4096] Endgame KQB-KQN} Qc8 {[%emt 0:00:00]} (34... Bc8 $1 $14) 35. Qxa7 $18 {[%emt 0:03:00]} (35. Qf4 $6 Qf5 $14) 35... Kf8 {[%emt 0:00:14]} 36. Qb6 {[%emt 0:00:36]} Kg7 {[%emt 0:00:38][%cal Oc8g4]} 37. Qb2+ {[%emt 0:01:31]} Kg8 {[%emt 0:00:26][%cal Oc8g4]} 38. Qf6 {[%emt 0:00:21]} (38. Kg2 $142) 38... Ba6 $2 {[%emt 0:00:41][%mdl 8192] [#]} (38... Qa8 $16 {was necessary.}) 39. Ne5 $1 {[%emt 0:01:55]} ({And not} 39. Ng5 Qe8 40. Qf4 (40. Qxa6 Qe1+ 41. Kg2 Qe2+ 42. Kh3 Qh5+ 43. Kg2 Qe2+ 44. Kg1 Qe1+ 45. Kg2 Qe2+ $11) 40... Qe1+ 41. Kg2 Qe2+ 42. Qf2 Qe7 $11) 39... Qe8 {[%emt 0:00:30]} (39... Qb7 40. Kg2 (40. Qd8+ Kg7 $11) 40... Qb2+ 41. Kf3 Qc3+ 42. Kg4 Qd4+ 43. Kg5 Qd2+ 44. Qf4 Qxf4+ 45. gxf4 Kg7) 40. d6 {[%emt 0:01:01] Threatening mate with d7.} Bc8 {[%emt 0:00:29] Prevents d7.} 41. Qe7 {[%emt 0:00:28] Prevents Be6.} Qf8 {[%emt 0:00:03]} 42. Kg1 {[%emt 0:00:34]} Be6 {[%emt 0:00:17] [#]} 43. Qxf8+ $1 {[%emt 0:00:51]} Kxf8 {[%emt 0:01:42] KB-KN} 44. a4 {[%emt 0:00:25]} Ke8 {[%emt 0:00:00]} 45. a5 {[%emt 0:00:42]} Bc8 {[%emt 0:00:00]} 46. Kf2 {[%emt 0:00:32]} f6 {[%emt 0:00:00]} 47. Nd3 {[%emt 0:00:32]} Kd7 {[%emt 0:00:00]} 48. Nxc5+ {[%emt 0:00:08]} ({Less strong is} 48. a6 Kxd6 49. a7 Bb7 $16) 48... Kxd6 {[%emt 0:00:00]} 49. Nd3 {[%emt 0:00:35]} Be6 {[%emt 0:00:13]} 50. c5+ {[%emt 0:00:15]} Kc6 {[%emt 0:00:18]} 51. a6 {[%emt 0:00:49][%cal Ba5a6,Ba6a7][%mdl 32]} Bc8 {[%emt 0:00:30]} 52. Ke3 {[%emt 0:00:23]} Kd5 {[%emt 0:02:24]} 53. h4 {[%emt 0:00:39][%cal Bh2h4,Bh4h5][%mdl 32]} g5 $2 {[%emt 0:00:04]} (53... Bxa6 54. Nb4+ Kxc5 55. Nxa6+ Kd5 56. Nb4+ Ke6) 54. h5 {[%emt 0:00:23]} h6 {[%emt 0:00:16]} 55. a7 {[%emt 0:00:25]} Bb7 {[%emt 0:00:01]} 56. g4 {[%emt 0:00:28]} Ba8 {[%emt 0:01:49]} 57. c6 {[%emt 0:00:49]} Kxc6 {[%emt 0:01:25]} 58. Ke4 {[%emt 0:00:05] White threatens Kf5 and mate.} Kb6+ {[%emt 0:00:00]} 59. Kf5 {[%emt 0:00:07] White mates.} Kxa7 {[%emt 0:00:01]} 60. Kxf6 {[%emt 0:00:17]} Kb6 {[%emt 0:00:13]} 61. Kg7 {[%emt 0:00:51]} Be4 {[%emt 0:00:09]} 62. Nf2 {[%emt 0:00:21]} Bc2 {[%emt 0:00:13]} 63. Kxh6 {[%emt 0:00:06]} Kc5 {[%emt 0:00:05]} 64. Kxg5 {[%emt 0:00:32]} Kd6 {[%emt 0:02:49]} 65. Kf6 {[%emt 0:00:13]} Kd5 {[%emt 0:00:30] Weighted Error Value: White=0.22 (precise) /Black=0.49} 1-0

[Event "US Masters 2022"]
[Site "Charlotte"]
[Date "2022.11.26"]
[Round "5.19"]
[White "Sethuraman, Sandeep"]
[Black "Balakrishnan, Praveen"]
[Result "0-1"]
[ECO "D36"]
[WhiteElo "2371"]
[BlackElo "2510"]
[Annotator "TA"]
[PlyCount "48"]
[EventDate "2022.11.23"]
[EventType "swiss"]
[EventCountry "USA"]
[SourceTitle "playchess.com"]
[Source "ChessBase"]
[SourceQuality "1"]
[TimeControl "5400+30"]

{[%evp 16,48,19,17,22,16,10,3,14,22,26,-125,-132,-482,-484,-331,-127,-592,-267,-272,-241,-412,-248,-432,-411,-597,-570,-29986,-322,-29987,-29988,-29988,-29989,-29991,-29992]} 1. d4 {[%emt 0:00:01]} Nf6 {[%emt 0:09:51]} 2. c4 {[%emt 0:00:07]} e6 {[%emt 0:00:04]} 3. Nc3 {[%emt 0:00:08]} d5 {[%emt 0:00:05]} 4. cxd5 {[%emt 0:00:43]} exd5 {[%emt 0:00:08]} 5. Bg5 {[%emt 0:00:07]} c6 {[%emt 0:00:41]} 6. Qc2 {[%emt 0:00:06]} Be7 {[%emt 0:03:51]} 7. e3 {[%emt 0:00:06]} h6 {[%emt 0:00:20]} 8. Bh4 {[%emt 0:01:07]} O-O {[%emt 0:00:30]} 9. Bd3 {[%emt 0:00:16]} Ne8 {[%emt 0:01:13] D36: Queen's Gambit Declined: Exchange Variation: Main line (5 Bg5 c6 6 Qc2).} 10. Bxe7 {[%emt 0:05:18]} Qxe7 {[%emt 0:00:12]} 11. Nxd5 {[%emt 0:04:27]} cxd5 {[%emt 0:00:41] The position is equal.} 12. Qxc8 {[%emt 0:00:05]} Nc6 $1 {[%emt 0:01:10]} 13. Qxa8 $2 {[%emt 0:06:44]} ({White should try} 13. Qf5 $1 $11 g6 14. Qxd5) 13... Qb4+ $1 $17 {[%emt 0:01:00] [#]} 14. Ke2 $146 {[%emt 0:24:35][%mdl 8192]} (14. Kf1 $17 Nf6 15. Qxf8+ $1 (15. a3 $2 Qxb2 $17) 15... Kxf8 16. Re1) ({Predecessor:} 14. Kd1 Nf6 15. Qxf8+ Kxf8 16. Rb1 Ne4 17. Bxe4 dxe4 18. Ne2 Qc4 19. Rc1 Qxa2 20. Rxc6 bxc6 {0-1 (53) Gunathilake,M (1415)-Theekshana,H (2045) Nugegoda 2021}) 14... Qxb2+ $19 {[%emt 0:16:43]} 15. Kf3 {[%emt 0:01:07] aiming for Rb1.} Nf6 $2 {[%emt 0:40:46]} (15... Qxa1 $19 {has better winning chances.} 16. Qxb7 Qd1+ 17. Be2 Qc2) 16. Rb1 {[%emt 0:03:00][%mdl 8192]} (16. Qxf8+ $17 {was the crucial defense.} Kxf8 17. Ne2) 16... Nxd4+ {[%emt 0:11:13]} (16... Qd2 $142 17. Qxf8+ (17. Qxb7 $2 Nxd4+ 18. Kg3 Nh5+ 19. Kh3 Qxf2 $19) (17. Bh7+ $2 Kxh7 $19) 17... Kxf8) 17. exd4 {[%emt 0:01:30] [#]} Qd2 $1 {[%emt 0:04:10] The board is on fire.} (17... Qxd4 18. Qxf8+ Kxf8 19. Ke2 $17) 18. Qxf8+ {[%emt 0:01:43]} (18. Qxb7 $2 Qxd3+ 19. Kf4 Qe4+ 20. Kg3 Qg4#) (18. Bh7+ $2 Kxh7 19. g3 Rxa8 $19) 18... Kxf8 {[%emt 0:00:05]} 19. Rb3 {[%emt 0:10:20]} (19. Bf5 {was forced.} g6 20. g3 (20. Ne2 $2 gxf5 21. Rb3 Ne4 $19)) 19... Qd1+ {[%emt 0:02:10]} ({Worse is} 19... Qxa2 20. Rc3 (20. Rxb7 Qd2 $15) 20... Qa1 21. Rc8+ Ke7 22. Rc2 $15 (22. Rc7+ $2 Kd6 $19)) 20. Be2 {[%emt 0:02:35]} (20. Ne2 $142 Qxh1 21. Rxb7) 20... Qxd4 {[%emt 0:00:07]} 21. Rd3 {[%emt 0:05:54]} Qe4+ {[%emt 0:00:46]} 22. Kg3 {[%emt 0:00:02]} g5 {[%emt 0:01:04] Black mates.} 23. Nh3 {[%emt 0:02:14]} Qxe2 {[%emt 0:00:18][%cal Rf6e4]} 24. Rf3 {[%emt 0:00:15]} Qe5+ {[%emt 0:00:08] White did not feel at home in the position after the opening.   Weighted Error Value: White=1.46/Black=0.40} 0-1

[Event "US Masters 2022"]
[Site "Charlotte"]
[Date "2022.11.26"]
[Round "5.20"]
[White "Brodsky, David"]
[Black "Jacobson, Aaron"]
[Result "1/2-1/2"]
[ECO "C07"]
[WhiteElo "2509"]
[BlackElo "2351"]
[Annotator "TA"]
[PlyCount "96"]
[EventDate "2022.11.23"]
[EventType "swiss"]
[EventCountry "USA"]
[SourceTitle "playchess.com"]
[Source "ChessBase"]
[SourceQuality "1"]
[TimeControl "5400+30"]

{[%evp 9,96,27,120,-15,50,-52,20,19,21,10,26,7,10,18,13,11,22,16,29,8,10,12,18,0,9,0,0,0,18,12,16,14,10,0,0,0,37,37,38,32,36,34,35,40,41,35,43,41,42,39,52,0,2,0,0,0,0,0,0,0,0,0,0,0,0,0,0,0,0,0,0,0,0,0,0,0,0,0,0,0,0,0,0,0,0,0,0,0,0]} 1. e4 {[%emt 0:03:26]} e6 {[%emt 0:02:57]} 2. d4 {[%emt 0:00:09]} d5 {[%emt 0:00:03]} 3. Nd2 {[%emt 0:00:04]} c5 {[%emt 0:00:04]} 4. Ngf3 {[%emt 0:00:05]} cxd4 {[%emt 0:00:04]} 5. exd5 {[%emt 0:00:27]} Qd7 {[%emt 1:29:52]} (5... exd5 $11 {remains equal.} 6. Bd3 (6. Nxd4 Nc6 $11) 6... Qe7+ 7. Be2 d3 8. cxd3 Nf6) 6. d6 {C07: French Tarrasch: 3...c5, 4 Ngf3 and 4 exd5 Qxd5.} (6. Nxd4 a6) (6. dxe6 $16 Qxe6+ 7. Be2) 6... Qxd6 {[%emt 0:00:00]} (6... Nc6 $11) 7. Bc4 {[%emt 0:00:34]} (7. Nc4 $14 Qd5 8. Nxd4 (8. Qxd4 Nc6 $14)) 7... Qd7 {[%emt 0:00:00]} (7... Be7 $15) 8. O-O $11 {[%emt 0:00:08]} Nc6 {[%emt 0:00:00]} 9. Nb3 {[%emt 0:00:07]} a6 {[%emt 0:00:00]} 10. Nbxd4 {[%emt 0:00:47]} Nxd4 {[%emt 0:00:00]} 11. Qxd4 {[%emt 0:00:22]} Qxd4 {[%emt 0:00:00]} 12. Nxd4 {[%emt 0:00:03] [#]} Bd7 $146 {[%emt 0:00:00]} ({Predecessor:} 12... Nf6 13. Bf4 Bd7 14. Rad1 Bc5 15. Rfe1 Rc8 16. Bb3 O-O 17. c3 Rfd8 18. h3 Be8 19. g4 Bxd4 20. Rxd4 Rxd4 21. cxd4 {½-½ (36) Borisek,J (2576)-Nisipeanu,L (2657) Spilimbergo 2018}) 13. Be2 {[%emt 0:01:47]} Ne7 {[%emt 0:00:00]} 14. Bf3 {[%emt 0:17:11]} e5 {[%emt 0:00:00]} 15. Nb3 {[%emt 0:01:12]} ({Don't play} 15. Bxb7 Ra7 16. Be4 exd4 $17) 15... Bc6 {[%emt 0:00:00]} 16. Bxc6+ {[%emt 0:01:31]} Nxc6 {[%emt 0:00:00]} 17. Rd1 {[%emt 0:01:03]} Rd8 {[%emt 0:00:00][%cal Rd8d1] [#]} 18. Be3 {[%emt 0:01:06]} Rd7 {[%emt 0:00:00]} 19. c3 {[%emt 0:06:32]} Kd8 {[%emt 0:00:00][%cal Be8d8,Bd8c8,Bc8d7][%mdl 32]} 20. Bb6+ {[%emt 0:05:27]} Kc8 {[%emt 0:00:00]} 21. Rxd7 {[%emt 0:00:24]} Kxd7 {[%emt 0:00:00]} 22. Rd1+ {[%emt 0:00:05]} Kc8 {[%emt 0:00:00]} 23. Na5 {[%emt 0:04:04] Threatens to win with Nxc6.} Be7 {[%emt 0:00:00]} 24. Nc4 {[%emt 0:00:37]} f6 {[%emt 0:00:00]} 25. a4 {[%emt 0:04:24]} Nb8 {[%emt 0:00:00]} 26. b4 {[%emt 0:06:53]} Nd7 {[%emt 0:00:00]} 27. Ba5 {[%emt 0:03:25]} Re8 {[%emt 0:00:00]} 28. Kf1 {[%emt 0:05:55]} Bf8 {[%emt 0:00:00] [#]} 29. Rd6 $1 {[%emt 0:14:43]} e4 {[%emt 0:02:37]} 30. Ke2 {[%emt 0:12:15]} Re5 {[%emt 0:01:39] The position is equal.} 31. Rxd7 {[%emt 0:02:27]} Kxd7 {[%emt 0:00:04]} 32. Nxe5+ {[%emt 0:00:04]} fxe5 {[%emt 0:00:04][%mdl 4096] Endgame KB-KB} 33. Ke3 {[%emt 0:00:23] Black must now prevent c4.} Kc6 $1 {[%emt 0:00:09]} 34. Kxe4 {[%emt 0:00:29]} (34. c4 $5) 34... b6 {[%emt 0:00:23] Prevents c4.} 35. Bxb6 {[%emt 0:00:08]} Kxb6 {[%emt 0:00:05]} 36. Kxe5 {[%emt 0:00:26] KB-KP} a5 {[%emt 0:04:09]} 37. bxa5+ {[%emt 0:00:57]} Kxa5 {[%emt 0:00:35]} 38. Ke6 {[%emt 0:00:09] And now Kf7 would win.} Bc5 {[%emt 0:00:43]} 39. f4 {[%emt 0:06:51]} Bg1 {[%emt 0:00:40]} 40. h4 {[%emt 0:02:36] Hoping for Kf7.} Bh2 {[%emt 0:00:38]} (40... Kxa4 $2 41. Kf7 h5 42. Kxg7 $18) 41. f5 {[%emt 0:00:33]} Bg3 {[%emt 0:02:29]} 42. Kf7 {[%emt 0:00:20]} Be5 {[%emt 0:00:09]} (42... Bxh4 $2 43. Kxg7 Kxa4 44. g4 $18) 43. g4 {[%emt 0:00:40]} h6 {[%emt 0:00:12]} 44. g5 {[%emt 0:01:06]} hxg5 {[%emt 0:00:10]} (44... Bxc3 45. gxh6 (45. f6 hxg5 46. fxg7 Bxg7 $11) 45... gxh6 46. Kg6 $18) 45. hxg5 {[%emt 0:00:01] aiming for c4.} Bxc3 {[%emt 0:00:15]} 46. f6 {[%emt 0:00:13]} gxf6 {[%emt 0:00:17]} 47. gxf6 {[%emt 0:00:03]} Kxa4 {[%emt 0:00:05]} 48. Ke6 {[%emt 0:00:02]} Bxf6 {[%emt 0:00:04] Weighted Error Value: White=0.14 (very precise) /Black=0.12 (very precise)} 1/2-1/2